[Event "Championnat d'Europe de Blitz"]
[Date "2024.12.09"]
[White "Trushko, Andrii"]
[Black "Georgiev, Kiril"]
[WhiteElo "2143"]
[BlackElo "2537"]
[Round "10.19"]
[Result "0-1"]
[TimeControl "180+2"]

1. d4 {[%emt 00:17:31] [%clk 00:03:03]} Nf6 {[%emt 00:00:03] [%clk 00:03:01]} 2.
Bg5 {[%clk 00:03:04]} c5 {[%emt 00:00:10] [%clk 00:02:53]} 3. c3 {[%emt
00:00:01] [%clk 00:03:05]} Qb6 {[%emt 00:00:06] [%clk 00:02:49]} 4. Qc2 {[%emt
00:00:01] [%clk 00:03:06]} cxd4 {[%emt 00:00:05] [%clk 00:02:46]} 5. Bxf6 {[%emt
00:00:01] [%clk 00:03:07]} d3 {[%emt 00:00:18] [%clk 00:02:30]} 6. exd3 {[%emt
00:00:02] [%clk 00:03:07]} Qxf6 {[%emt 00:00:13] [%clk 00:02:19]} 7. d4 {[%emt
00:00:02] [%clk 00:03:08]} g6 {[%emt 00:00:06] [%clk 00:02:14]} 8. Nd2 {[%emt
00:00:05] [%clk 00:03:05]} Bg7 {[%emt 00:00:01] [%clk 00:02:15]} 9. Ngf3 {[%emt
00:00:01] [%clk 00:03:06]} O-O {[%emt 00:00:04] [%clk 00:02:14]} 10. Bd3 {[%emt
00:00:18] [%clk 00:02:50]} d6 {[%emt 00:00:15] [%clk 00:02:01]} 11. O-O {[%emt
00:00:03] [%clk 00:02:49]} e5 {[%emt 00:00:02] [%clk 00:02:01]} 12. dxe5 {[%emt
00:00:01] [%clk 00:02:50]} dxe5 {[%clk 00:02:02]} 13. Rfe1 {[%emt 00:00:02]
[%clk 00:02:50]} Nc6 {[%emt 00:00:01] [%clk 00:02:02]} 14. Be4 {[%emt 00:00:04]
[%clk 00:02:48]} Re8 {[%emt 00:00:05] [%clk 00:01:59]} 15. Nc4 {[%emt 00:00:03]
[%clk 00:02:47]} Bf5 {[%emt 00:00:06] [%clk 00:01:55]} 16. Rad1 {[%emt 00:00:09]
[%clk 00:02:41]} Rad8 {[%emt 00:00:07] [%clk 00:01:50]} 17. Rxd8 {[%emt
00:00:13] [%clk 00:02:30]} Rxd8 {[%emt 00:00:04] [%clk 00:01:48]} 18. h3 {[%emt
00:00:25] [%clk 00:02:07]} Bxe4 {[%emt 00:00:13] [%clk 00:01:36]} 19. Qxe4
{[%emt 00:00:02] [%clk 00:02:07]} Qe6 {[%emt 00:00:01] [%clk 00:01:37]} 20. Qe2
{[%emt 00:00:24] [%clk 00:01:46]} h6 {[%emt 00:00:25] [%clk 00:01:14]} 21. a4
{[%emt 00:00:08] [%clk 00:01:41]} Re8 {[%emt 00:00:08] [%clk 00:01:08]} 22. Rd1
{[%emt 00:00:14] [%clk 00:01:28]} e4 {[%emt 00:00:02] [%clk 00:01:08]} 23. Nh2
{[%emt 00:00:07] [%clk 00:01:24]} Bf8 {[%emt 00:00:07] [%clk 00:01:02]} 24. Ne3
{[%emt 00:00:08] [%clk 00:01:18]} Ne5 {[%emt 00:00:03] [%clk 00:01:01]} 25. Nd5
{[%emt 00:00:05] [%clk 00:01:15]} Qf5 {[%emt 00:00:33] [%clk 00:00:30]} 26. Ng4
{[%emt 00:00:34] [%clk 00:00:43]} Re6 {[%emt 00:00:05] [%clk 00:00:27]} 27. Nde3
{[%emt 00:00:04] [%clk 00:00:42]} Qg5 {[%emt 00:00:03] [%clk 00:00:26]} 28. Rd5
{[%emt 00:00:08] [%clk 00:00:36]} h5 {[%emt 00:00:10] [%clk 00:00:17]} 29. Nxe5
{[%emt 00:00:06] [%clk 00:00:33]} Rxe5 {[%emt 00:00:01] [%clk 00:00:18]} 30. Qb5
{[%emt 00:00:08] [%clk 00:00:26]} Rxd5 {[%emt 00:00:03] [%clk 00:00:18]} 31.
Qxd5 {[%emt 00:00:02] [%clk 00:00:27]} Qxd5 {[%emt 00:00:03] [%clk 00:00:16]}
32. Nxd5 {[%emt 00:00:01] [%clk 00:00:28]} f5 {[%clk 00:00:17]} 33. f3 {[%emt
00:00:01] [%clk 00:00:28]} exf3 {[%emt 00:00:07] [%clk 00:00:12]} 34. gxf3
{[%emt 00:00:02] [%clk 00:00:29]} Kf7 {[%clk 00:00:13]} 35. Kf2 {[%emt 00:00:03]
[%clk 00:00:28]} g5 {[%emt 00:00:02] [%clk 00:00:13]} 36. b4 {[%emt 00:00:02]
[%clk 00:00:28]} Bd6 {[%emt 00:00:02] [%clk 00:00:13]} 37. c4 {[%emt 00:00:09]
[%clk 00:00:21]} Ke6 {[%clk 00:00:14]} 38. Ke2 {[%emt 00:00:04] [%clk 00:00:20]}
g4 {[%emt 00:00:02] [%clk 00:00:13]} 39. fxg4 {[%emt 00:00:01] [%clk 00:00:21]}
fxg4 {[%emt 00:00:02] [%clk 00:00:13]} 40. hxg4 {[%clk 00:00:22]} hxg4 {[%emt
00:00:01] [%clk 00:00:14]} 41. Ne3 {[%emt 00:00:01] [%clk 00:00:23]} g3 {[%emt
00:00:07] [%clk 00:00:08]} 42. c5 {[%emt 00:00:02] [%clk 00:00:24]} Bf4 {[%emt
00:00:01] [%clk 00:00:09]} 43. Ng2 {[%emt 00:00:17] [%clk 00:00:09]} Bc7 {[%emt
00:00:02] [%clk 00:00:09]} 44. Ne3 {[%emt 00:00:04] [%clk 00:00:07]} Ke5 {[%emt
00:00:01] [%clk 00:00:09]} 45. b5 {[%emt 00:00:05] [%clk 00:00:05]} Kd4 {[%emt
00:00:03] [%clk 00:00:07]} 46. c6 {[%emt 00:00:03] [%clk 00:00:05]} bxc6 {[%emt
00:00:02] [%clk 00:00:07]} 47. bxc6 {[%clk 00:00:06]} Kc5 {[%emt 00:00:01] [%clk
00:00:08]} 48. Kf3 {[%emt 00:00:02] [%clk 00:00:05]} Kxc6 {[%emt 00:00:02] [%clk
00:00:08]} 49. Nf5 {[%emt 00:00:03] [%clk 00:00:05]} Kc5 {[%clk 00:00:10]} 50.
Ne3 {[%emt 00:00:03] [%clk 00:00:03]} a5 {[%emt 00:00:01] [%clk 00:00:10]} 51.
Ke4 {[%clk 00:00:04]} Kb4 {[%emt 00:00:01] [%clk 00:00:11]} 52. Kf3 {[%emt
00:00:02] [%clk 00:00:04]} Kxa4 {[%emt 00:00:02] [%clk 00:00:12]} 53. Nd5 {[%emt
00:00:01] [%clk 00:00:05]} Bb8 {[%clk 00:00:13]} 54. Nb6+ {[%emt 00:00:02] [%clk
00:00:06]} Kb3 {[%clk 00:00:15]} 55. Nd7 {[%emt 00:00:01] [%clk 00:00:06]} Bd6
{[%emt 00:00:01] [%clk 00:00:16]} 56. Nb6 {[%emt 00:00:01] [%clk 00:00:07]} a4
{[%clk 00:00:17]} 0-1

[Site "Europe Echecs"]

[Event "Championnat d'Europe de Blitz"]
[Date "2024.12.09"]
[White "Lagarde, Maxime"]
[Black "Nevednichy, Vladislav"]
[WhiteElo "2600"]
[BlackElo "2451"]
[Round "10.20"]
[Result "0-1"]
[TimeControl "180+2"]

1. e4 {[%clk 00:03:02]} e6 {[%emt 00:00:02] [%clk 00:03:02]} 2. d4 {[%emt
00:00:02] [%clk 00:03:02]} d5 {[%emt 00:00:01] [%clk 00:03:04]} 3. e5 {[%emt
00:00:02] [%clk 00:03:02]} c5 {[%emt 00:00:01] [%clk 00:03:04]} 4. c3 {[%clk
00:03:04]} Nc6 {[%emt 00:00:01] [%clk 00:03:05]} 5. Nf3 {[%emt 00:00:01] [%clk
00:03:04]} Bd7 {[%emt 00:00:11] [%clk 00:02:56]} 6. Be2 {[%emt 00:00:02] [%clk
00:03:05]} a6 {[%emt 00:00:04] [%clk 00:02:53]} 7. O-O {[%emt 00:00:08] [%clk
00:02:59]} Rc8 {[%emt 00:00:02] [%clk 00:02:54]} 8. a3 {[%emt 00:00:29] [%clk
00:02:32]} Nge7 {[%emt 00:00:24] [%clk 00:02:31]} 9. b4 {[%emt 00:00:57] [%clk
00:01:37]} cxd4 {[%emt 00:00:02] [%clk 00:02:31]} 10. cxd4 {[%emt 00:00:01]
[%clk 00:01:38]} Nf5 {[%emt 00:00:02] [%clk 00:02:31]} 11. Be3 {[%emt 00:00:06]
[%clk 00:01:35]} Be7 {[%emt 00:00:10] [%clk 00:02:22]} 12. Bd3 {[%emt 00:00:03]
[%clk 00:01:34]} Na7 {[%emt 00:00:10] [%clk 00:02:15]} 13. Bxf5 {[%emt 00:00:23]
[%clk 00:01:12]} exf5 {[%emt 00:00:02] [%clk 00:02:16]} 14. Nbd2 {[%emt
00:00:14]} g5 {[%clk 00:02:07]} 15. Nb3 {[%emt 00:00:12] [%clk 00:01:01]} f4
{[%emt 00:00:02] [%clk 00:02:06]} 16. Bc1 {[%emt 00:00:22] [%clk 00:00:41]} Ba4
{[%emt 00:00:12] [%clk 00:01:56]} 17. Rb1 {[%emt 00:00:20] [%clk 00:00:23]} Nb5
{[%emt 00:00:14] [%clk 00:01:44]} 18. Qe1 {[%emt 00:00:17] [%clk 00:00:08]} Nc3
{[%emt 00:00:09] [%clk 00:01:37]} 19. Rb2 {[%emt 00:00:02] [%clk 00:00:09]} Bb5
{[%emt 00:00:11] [%clk 00:01:28]} 20. e6 {[%emt 00:00:05] [%clk 00:00:06]} O-O
{[%emt 00:00:07] [%clk 00:01:23]} 21. exf7+ {[%emt 00:00:02] [%clk 00:00:06]}
Rxf7 {[%emt 00:00:01] [%clk 00:01:24]} 22. Ne5 {[%emt 00:00:01] [%clk 00:00:07]}
Rf6 {[%emt 00:00:08] [%clk 00:01:18]} 23. Nc5 {[%emt 00:00:01] [%clk 00:00:08]}
Bxf1 {[%emt 00:00:04] [%clk 00:01:15]} 24. Qxc3 {[%emt 00:00:03] [%clk
00:00:08]} Bb5 {[%emt 00:00:03] [%clk 00:01:13]} 25. Qh3 {[%emt 00:00:07] [%clk
00:00:04]} b6 {[%emt 00:00:08] [%clk 00:01:07]} 26. Nb3 {[%emt 00:00:02] [%clk
00:00:05]} Ba4 {[%emt 00:00:13] [%clk 00:00:55]} 27. Bd2 {[%emt 00:00:02] [%clk
00:00:05]} Bd6 {[%emt 00:00:04] [%clk 00:00:53]} 28. g3 {[%emt 00:00:02] [%clk
00:00:05]} Qf8 {[%emt 00:00:11] [%clk 00:00:44]} 29. Qg4 {[%emt 00:00:01] [%clk
00:00:05]} Rf5 {[%emt 00:00:11] [%clk 00:00:36]} 30. gxf4 {[%emt 00:00:02] [%clk
00:00:04]} Kh8 {[%emt 00:00:07] [%clk 00:00:32]} 31. fxg5 {[%emt 00:00:01] [%clk
00:00:04]} Bxe5 {[%emt 00:00:03] [%clk 00:00:31]} 32. dxe5 {[%emt 00:00:02]
[%clk 00:00:05]} Rxf2 {[%emt 00:00:02] [%clk 00:00:30]} 33. e6 {[%emt 00:00:05]
[%clk 00:00:00]} Rf1+ {[%emt 00:00:02]} 34. Kg2 Qf2+ {[%emt 00:00:03] [%clk
00:00:30]} 35. Kh3 Qf3+ {[%emt 00:00:01]} 36. Qg3 {[%emt 00:00:01] [%clk
00:00:00]} Qh5+ {[%emt 00:00:04] [%clk 00:00:30]} 37. Kg2 {[%clk 00:00:00]} Qe2+
{[%emt 00:00:05] [%clk 00:00:30]} 38. Kh3 {[%clk 00:00:00]} Rf3 {[%emt 00:00:06]
[%clk 00:00:30]} 39. Bc3+ Rcxc3 {[%emt 00:00:02]} 40. Rxe2 {[%emt 00:00:01]
[%clk 00:00:00]} Rxg3+ {[%emt 00:00:02] [%clk 00:00:30]} 41. hxg3 Rxb3 {[%emt
00:00:02]} 42. e7 {[%emt 00:00:01] [%clk 00:00:00]} Kg7 {[%emt 00:00:03] [%clk
00:00:30]} 0-1

[Site "Europe Echecs"]

[Event "Championnat d'Europe de Blitz"]
[Date "2024.12.09"]
[White "Gatineau, Yovann"]
[Black "Sargissian, Gabriel"]
[WhiteElo "2363"]
[BlackElo "2628"]
[Round "10.21"]
[Result "0-1"]
[TimeControl "180+2"]

1. d4 {[%emt 00:00:01] [%clk 00:03:03]} d5 {[%emt 00:00:01] [%clk 00:03:03]} 2.
c4 {[%clk 00:03:04]} e6 {[%emt 00:00:01] [%clk 00:03:04]} 3. Nf3 {[%clk
00:03:05]} Nf6 {[%emt 00:00:01] [%clk 00:03:05]} 4. Nc3 {[%emt 00:00:01] [%clk
00:03:07]} Nbd7 {[%emt 00:00:02] [%clk 00:03:04]} 5. Bf4 {[%emt 00:00:05] [%clk
00:03:03]} Bb4 {[%emt 00:00:03] [%clk 00:03:04]} 6. cxd5 {[%emt 00:00:04] [%clk
00:03:01]} Nxd5 {[%emt 00:00:05] [%clk 00:03:00]} 7. Bd2 {[%emt 00:00:04] [%clk
00:02:59]} N5f6 {[%emt 00:00:01] [%clk 00:03:01]} 8. e3 {[%emt 00:00:06] [%clk
00:02:56]} b6 {[%emt 00:00:03] [%clk 00:03:00]} 9. Bd3 {[%emt 00:00:13] [%clk
00:02:45]} Bb7 {[%emt 00:00:02] [%clk 00:03:00]} 10. O-O {[%emt 00:00:02] [%clk
00:02:45]} O-O {[%emt 00:00:05] [%clk 00:02:57]} 11. Re1 {[%emt 00:00:03] [%clk
00:02:44]} e5 {[%emt 00:00:34] [%clk 00:02:25]} 12. Bc4 {[%emt 00:00:59] [%clk
00:01:47]} e4 {[%emt 00:00:10] [%clk 00:02:17]} 13. Ng5 {[%emt 00:00:05] [%clk
00:01:43]} Bxc3 {[%emt 00:00:03] [%clk 00:02:16]} 14. Bxc3 {[%emt 00:00:03]
[%clk 00:01:42]} h6 {[%emt 00:00:13] [%clk 00:02:06]} 15. Nh3 {[%emt 00:00:02]
[%clk 00:01:41]} Nd5 {[%emt 00:00:07] [%clk 00:02:02]} 16. Rc1 {[%emt 00:00:13]
[%clk 00:01:30]} N7f6 {[%emt 00:00:07] [%clk 00:01:56]} 17. Nf4 {[%emt 00:00:38]
[%clk 00:00:54]} Nxf4 {[%emt 00:00:02] [%clk 00:01:56]} 18. exf4 {[%clk
00:00:55]} Bd5 {[%emt 00:00:19] [%clk 00:01:39]} 19. Bf1 {[%emt 00:00:12] [%clk
00:00:45]} c6 {[%emt 00:00:08] [%clk 00:01:33]} 20. b3 {[%emt 00:00:06] [%clk
00:00:42]} Re8 {[%emt 00:00:02] [%clk 00:01:33]} 21. Bb2 {[%emt 00:00:08] [%clk
00:00:36]} a5 {[%emt 00:00:01] [%clk 00:01:33]} 22. Re3 {[%emt 00:00:10] [%clk
00:00:28]} Qd6 {[%emt 00:00:05] [%clk 00:01:30]} 23. g3 {[%emt 00:00:07] [%clk
00:00:24]} Qd7 {[%clk 00:01:31]} 24. a4 {[%emt 00:00:14] [%clk 00:00:12]} Ng4
{[%emt 00:00:08] [%clk 00:01:25]} 25. Rec3 {[%emt 00:00:02] [%clk 00:00:12]} e3
{[%emt 00:00:06] [%clk 00:01:20]} 26. f3 {[%emt 00:00:08] [%clk 00:00:07]} Nf2
{[%emt 00:00:48] [%clk 00:00:34]} 27. Qe2 {[%emt 00:00:01] [%clk 00:00:08]} Nh3+
{[%emt 00:00:03] [%clk 00:00:33]} 28. Kg2 {[%emt 00:00:06] [%clk 00:00:04]} g5
{[%emt 00:00:01] [%clk 00:00:34]} 29. fxg5 {[%emt 00:00:03] [%clk 00:00:03]}
Nxg5 {[%emt 00:00:02] [%clk 00:00:33]} 30. Kg1 {[%emt 00:00:03] [%clk 00:00:03]}
Nxf3+ {[%emt 00:00:02] [%clk 00:00:32]} 0-1

[Site "Europe Echecs"]

[Event "Championnat d'Europe de Blitz"]
[Date "2024.12.09"]
[White "Perunovic, Miodrag"]
[Black "Kazakouski, Valery"]
[WhiteElo "2357"]
[BlackElo "2567"]
[Round "10.22"]
[Result "0-1"]
[TimeControl "180+2"]

1. d4 {[%clk 00:03:03]} Nf6 {[%emt 00:00:01] [%clk 00:03:03]} 2. Nf3 {[%emt
00:00:07] [%clk 00:02:58]} e6 {[%emt 00:00:01] [%clk 00:03:04]} 3. e3 {[%clk
00:02:59]} b6 {[%emt 00:00:06] [%clk 00:03:01]} 4. Bd3 {[%emt 00:00:01] [%clk
00:02:59]} Bb7 {[%emt 00:00:02] [%clk 00:03:01]} 5. O-O {[%emt 00:00:02] [%clk
00:02:59]} c5 {[%emt 00:00:01] [%clk 00:03:02]} 6. c4 {[%emt 00:00:01] [%clk
00:03:00]} Bxf3 {[%emt 00:00:02] [%clk 00:03:03]} 7. Qxf3 {[%emt 00:00:01] [%clk
00:03:00]} Nc6 {[%clk 00:03:04]} 8. d5 {[%clk 00:03:01]} Ne5 {[%emt 00:00:01]
[%clk 00:03:05]} 9. Qd1 {[%clk 00:03:02]} Nxd3 {[%emt 00:00:01] [%clk 00:03:06]}
10. Qxd3 {[%emt 00:00:02] [%clk 00:03:02]} exd5 {[%emt 00:00:01] [%clk
00:03:08]} 11. cxd5 {[%emt 00:00:01] [%clk 00:03:03]} Bd6 {[%clk 00:03:09]} 12.
a4 {[%emt 00:00:03] [%clk 00:03:01]} O-O {[%emt 00:00:04] [%clk 00:03:07]} 13.
Na3 {[%emt 00:00:01] [%clk 00:03:03]} Ng4 {[%emt 00:00:27] [%clk 00:02:42]} 14.
h3 {[%emt 00:00:12] [%clk 00:02:52]} Ne5 {[%emt 00:00:01] [%clk 00:02:43]} 15.
Qc2 {[%emt 00:00:17] [%clk 00:02:37]} f5 {[%emt 00:00:03] [%clk 00:02:43]} 16.
Nc4 {[%emt 00:00:19] [%clk 00:02:19]} Nxc4 {[%emt 00:00:08] [%clk 00:02:38]} 17.
Qxc4 {[%clk 00:02:20]} Qe7 {[%emt 00:00:02] [%clk 00:02:38]} 18. g3 {[%emt
00:00:48] [%clk 00:01:34]} a6 {[%emt 00:00:08] [%clk 00:02:32]} 19. Bd2 {[%emt
00:00:03] [%clk 00:01:32]} Qe4 {[%emt 00:00:03] [%clk 00:02:31]} 20. b3 {[%emt
00:00:09] [%clk 00:01:25]} h5 {[%emt 00:00:14] [%clk 00:02:20]} 21. h4 {[%emt
00:00:08] [%clk 00:01:18]} Qf3 {[%emt 00:00:23] [%clk 00:01:59]} 22. Kh2 {[%emt
00:00:26] [%clk 00:00:54]} Rae8 {[%emt 00:00:04] [%clk 00:01:57]} 0-1

[Site "Europe Echecs"]